fUSD/lending_fUSD_20240427
["ID","MTS","AMOUNT","RATE_DAILY","PERIOD"]
[323727327,1714206640789,-299.48,0.0001118,2]
[323727328,1714206640798,-150.0,0.0001118,2]
[323727329,1714206640807,-419.3,0.0001118,2]
[323727330,1714206640816,-150.0,0.0001118,2]
[323727331,1714206640826,-162.9,0.0001118,2]
[323727332,1714206640835,-419.3,0.0001118,2]
[323727333,1714206640845,-150.0,0.0001118,2]
[323727334,1714206640854,-151.6,0.0001118,2]
[323727335,1714206640863,-164.87,0.0001118,2]
[323727336,1714206640872,-150.0,0.0001118,2]
[323727337,1714206640881,-162.9,0.0001118,2]
[323727338,1714206640890,-690.77,0.0001118,2]
[323727339,1714206640899,-162.9,0.0001118,2]
[323727340,1714206640909,-150.0,0.0001118,2]
[323727341,1714206640918,-162.35,0.0001118,2]
[323727342,1714206640927,-150.0,0.0001118,2]
[323727343,1714206640936,-500.0,0.0001127,2]
[323727344,1714206640945,-500.0,0.0001127,2]
[323727345,1714206640954,-1536.28,0.0001127,2]
[323727346,1714206640964,-500.0,0.0001127,2]
[323727347,1714206640973,-1685.76,0.0001127,2]
[323727348,1714206640982,-64.65075107,0.0001127,2]
[323727349,1714206640993,-2935.34924893,0.0001127,2]
[323727350,1714206641002,-500.0,0.0001127,2]
[323727351,1714206641013,-620.47611059,0.0001127,2]
[323727384,1714206643070,-281.83388941,0.0001127,2]
[323727385,1714206643081,-23.71814159,0.0001127,2]
[323727386,1714206643131,-476.28185841,0.0001127,2]
[323727387,1714206643140,-500.0,0.0001127,2]
[323727388,1714206643149,-500.0,0.0001127,2]
[323727389,1714206643159,-158.59435759,0.0001127,2]
[323727390,1714206643170,-341.40564241,0.0001127,2]
[323727391,1714206643179,-504.98,0.0001127,2]
[323727392,1714206643189,-581.51,0.0001127,2]
[323727393,1714206643198,-895.62,0.0001127,2]
[323727394,1714206643207,-500.0,0.0001127,2]
[323727395,1714206643217,-1031.44,0.0001127,2]
[323727396,1714206643226,-500.0,0.0001127,2]
[323727397,1714206643236,-500.0,0.0001127,2]
[323727398,1714206643245,-500.0,0.0001127,2]
[323727399,1714206643255,-1365.0,0.0001127,2]
[323727400,1714206643264,-500.0,0.0001127,2]
[323727401,1714206643274,-500.0,0.0001127,2]
[323727402,1714206643283,-500.0,0.0001127,2]
[323727403,1714206643294,-500.0,0.0001127,2]
[323727404,1714206643304,-1710.6,0.0001127,2]
[323727405,1714206643314,-500.0,0.0001127,2]
[323727406,1714206643323,-500.0,0.0001127,2]
[323727407,1714206643333,-623.09,0.0001127,2]
[323727408,1714206643343,-628.83,0.0001127,2]
[323727409,1714206643353,-1584.05,0.0001127,2]
[323727410,1714206643362,-500.0,0.0001127,2]
[323727411,1714206643371,-1365.59,0.0001127,2]
[323727412,1714206643380,-1405.52,0.0001127,2]
[323727413,1714206643390,-500.0,0.0001127,2]
[323727414,1714206643400,-500.0,0.0001127,2]
[323727415,1714206643409,-1923.0,0.0001127,2]
[323727416,1714206643420,-500.0,0.0001127,2]
[323727417,1714206643429,-500.0,0.0001127,2]
[323727418,1714206643439,-500.0,0.0001127,2]
[323727419,1714206643449,-500.0,0.0001127,2]
[323727421,1714206643458,-500.0,0.0001127,2]
[323727422,1714206643467,-500.0,0.0001127,2]
[323727423,1714206643476,-500.0,0.0001127,2]
[323727424,1714206643485,-500.0,0.0001127,2]
[323727425,1714206643499,-500.0,0.0001127,2]
[323727426,1714206643508,-504.3659072,0.0001127,2]
[323727427,1714206643520,-254.99075002,0.0001127,2]
[323727428,1714206643530,-500.0,0.0001127,2]
[323727429,1714206643540,-500.0,0.0001127,2]
[323727430,1714206643550,-501.27060811,0.0001127,2]
[323727431,1714206643559,-500.0,0.0001127,2]
[323727432,1714206643569,-500.0,0.0001127,2]
[323727433,1714206643578,-5556.21,0.0001127,2]
[323727434,1714206643587,-500.0,0.0001127,2]
[323727435,1714206643597,-471.61202259,0.0001127,2]
[323727436,1714206643606,-555.16050122,0.0001127,2]
[323727437,1714206643615,-500.0,0.0001127,2]
[323727438,1714206643624,-6561.62,0.0001127,2]
[323727439,1714206643633,-500.0,0.0001127,2]
[323727440,1714206643642,-500.0,0.0001127,2]
[323727441,1714206643651,-500.0,0.0001127,2]
[323727442,1714206643660,-500.0,0.0001127,2]
[323727443,1714206643669,-500.0,0.0001127,2]
[323727444,1714206643679,-500.0,0.0001127,2]
[323727445,1714206643688,-521.33581393,0.0001127,2]
[323727446,1714206643697,-828.33,0.0001127,2]
[323727447,1714206643706,-500.0,0.0001127,2]
[323727448,1714206643715,-594.83992673,0.0001127,2]
[323727449,1714206643724,-500.0,0.0001127,2]
[323727450,1714206643735,-500.0,0.0001127,2]
[323727451,1714206643744,-500.0,0.0001127,2]
[323727452,1714206643755,-500.0,0.00011271,2]
[323727453,1714206643766,-500.0,0.00011271,2]
[323727454,1714206643775,-500.0,0.00011271,2]
[323727455,1714206643783,-500.0,0.00011271,2]
[323727456,1714206643792,-500.0,0.00011271,2]
[323727457,1714206643800,-500.0,0.00011271,2]
[323727458,1714206643809,-500.0,0.00011271,2]
[323727459,1714206643818,-500.0,0.00011271,2]
[323727460,1714206643829,-500.0,0.00011271,2]
[323727461,1714206643839,-602.45047206,0.00011271,2]
[323727462,1714206643849,-500.0,0.00011271,2]
[323727463,1714206643858,-500.0,0.00011271,2]
[323727464,1714206643868,-500.0,0.00011271,2]
[323727465,1714206643877,-500.0,0.00011271,2]
[323727466,1714206643886,-500.0,0.00011271,2]
[323727467,1714206643895,-919.68,0.00011271,2]
[323727468,1714206643904,-325.05873351,0.00011271,2]
[323727469,1714206643913,-500.0,0.00011271,2]
[323727470,1714206643922,-500.0,0.00011271,2]
[323727471,1714206643932,-636.01,0.00011271,2]
[323727472,1714206643941,-590.90924885,0.00011271,2]
[323727473,1714206643951,-500.0,0.00011271,2]
[323727474,1714206643961,-500.0,0.00011271,2]
[323727475,1714206643970,-500.0,0.00011271,2]
[323727476,1714206643980,-500.0,0.00011271,2]
[323727477,1714206643989,-500.0,0.00011271,2]
[323727478,1714206643999,-500.0,0.00011271,2]
[323727479,1714206644009,-500.0,0.00011271,2]
[323727480,1714206644020,-500.0,0.00011271,2]
[323727481,1714206644030,-500.0,0.00011271,2]
[323727482,1714206644039,-628.76670339,0.00011271,2]
[323727483,1714206644049,-500.0,0.00011271,2]
[323727484,1714206644058,-500.0,0.00011271,2]
[323727485,1714206644067,-500.0,0.00011271,2]
[323727486,1714206644077,-500.0,0.00011271,2]
[323727487,1714206644086,-797.38,0.00011271,2]
[323727488,1714206644095,-500.0,0.00011271,2]
[323727489,1714206644104,-299.57969104,0.00011271,2]
[323727490,1714206644113,-500.0,0.00011271,2]
[323727491,1714206644123,-150.0,0.00011271,2]
[323727492,1714206644132,-500.0,0.00011271,2]
[323727493,1714206644140,-500.0,0.00011271,2]
[323727494,1714206644150,-500.0,0.00011271,2]
[323727495,1714206644159,-187.10958207,0.00011271,2]
[323727496,1714206644169,-500.0,0.00011271,2]
[323727497,1714206644178,-539.32764996,0.00011271,2]
[323727498,1714206644188,-500.0,0.00011271,2]
[323727499,1714206644197,-500.0,0.00011271,2]
[323727500,1714206644207,-500.0,0.00011271,2]
[323727501,1714206644216,-514.80698232,0.00011271,2]
[323727502,1714206644225,-500.0,0.00011271,2]
[323727503,1714206644234,-577.42,0.00011271,2]
[323727504,1714206644243,-500.0,0.00011271,2]
[323727505,1714206644253,-500.0,0.00011271,2]
[323727506,1714206644262,-500.0,0.00011271,2]
[323727507,1714206644273,-500.0,0.00011271,2]
[323727508,1714206644283,-500.0,0.00011271,2]
[323727509,1714206644292,-500.0,0.00011271,2]
[323727510,1714206644302,-500.0,0.00011271,2]
[323727511,1714206644312,-500.0,0.00011271,2]
[323727512,1714206644321,-500.0,0.00011271,2]
[323727513,1714206644331,-467.95074857,0.00011271,2]
[323727514,1714206644341,-714.18,0.00011271,2]
[323727515,1714206644351,-500.0,0.00011271,2]
[323727516,1714206644361,-2019.55,0.00011271,2]
[323727517,1714206644370,-500.0,0.00011271,2]
[323727518,1714206644380,-500.0,0.00011271,2]
[323727519,1714206644390,-500.0,0.00011271,2]
[323727520,1714206644399,-500.0,0.00011271,2]
[323727521,1714206644409,-500.0,0.00011271,2]
[323727522,1714206644418,-500.0,0.00011271,2]
[323727523,1714206644428,-500.0,0.00011271,2]
[323727524,1714206644437,-500.0,0.00011271,2]
[323727525,1714206644448,-500.0,0.00011271,2]
[323727526,1714206644457,-500.0,0.00011271,2]
[323727527,1714206644467,-500.0,0.00011271,2]
[323727528,1714206644477,-516.43547263,0.00011271,2]
[323727529,1714206644488,-500.0,0.00011271,2]
[323727530,1714206644500,-500.0,0.00011271,2]
[323727531,1714206644509,-500.0,0.00011271,2]
[323727532,1714206644519,-2622.06,0.00011271,2]
[323727533,1714206644528,-500.0,0.00011271,2]
[323727534,1714206644538,-637.23,0.00011271,2]
[323727535,1714206644547,-500.0,0.00011271,2]
[323727536,1714206644557,-500.0,0.00011271,2]
[323727537,1714206644568,-500.0,0.00011271,2]
[323727538,1714206644577,-500.0,0.00011271,2]
[323727539,1714206644586,-500.0,0.00011271,2]
[323727540,1714206644595,-500.0,0.00011271,2]
[323727541,1714206644605,-500.0,0.00011271,2]
[323727542,1714206644614,-948.77,0.00011271,2]
[323727543,1714206644624,-500.0,0.00011271,2]
[323727544,1714206644634,-500.0,0.00011271,2]
[323727545,1714206644644,-500.0,0.00011271,2]
[323727546,1714206644655,-500.0,0.00011271,2]
[323727547,1714206644666,-500.0,0.00011271,2]
[323727548,1714206644676,-500.0,0.00011271,2]
[323727549,1714206644687,-500.0,0.00011271,2]
[323727550,1714206644698,-500.0,0.00011271,2]
[323727551,1714206644708,-500.0,0.00011271,2]
[323727552,1714206644719,-500.0,0.00011271,2]
[323727553,1714206644731,-501.23893517,0.00011271,2]
[323727554,1714206644741,-881.77,0.00011271,2]
[323727555,1714206644751,-500.0,0.00011271,2]
[323727556,1714206644761,-500.0,0.00011271,2]
[323727557,1714206644773,-500.0,0.00011271,2]
[323727558,1714206644782,-500.0,0.00011271,2]
[323727559,1714206644792,-500.0,0.00011271,2]
[323727560,1714206644804,-500.0,0.00011271,2]
[323727561,1714206644815,-515.03576389,0.00011271,2]
[323727562,1714206644826,-500.0,0.00011271,2]
[323727563,1714206644836,-500.0,0.00011271,2]
[323727564,1714206644845,-500.0,0.00011271,2]
[323727565,1714206644858,-589.77,0.00011271,2]
[323727566,1714206644869,-500.0,0.00011271,2]
[323727567,1714206644881,-869.73,0.00011271,2]
[323727568,1714206644893,-500.0,0.00011271,2]
[323727569,1714206644904,-500.0,0.00011271,2]
[323727570,1714206644915,-153.02740691,0.00011271,2]
[323727571,1714206644926,-500.0,0.00011271,2]
[323727572,1714206644937,-500.0,0.00011271,2]
[323727573,1714206644947,-502.22,0.00011271,2]
[323727574,1714206644959,-500.0,0.00011271,2]
[323727575,1714206644969,-500.0,0.00011271,2]
[323727576,1714206644979,-500.0,0.00011271,2]
[323727577,1714206644989,-500.0,0.00011271,2]
[323727578,1714206644999,-500.0,0.00011271,2]
[323727579,1714206645009,-1593.53,0.00011271,2]
[323727580,1714206645019,-480.0,0.00011271,2]
[323727581,1714206645029,-500.0,0.00011271,2]
[323727582,1714206645039,-500.0,0.00011271,2]
[323727583,1714206645049,-1387.63,0.00011271,2]
[323727584,1714206645059,-500.0,0.00011271,2]
[323727585,1714206645070,-2348.7,0.00011271,2]
[323727586,1714206645080,-500.0,0.00011271,2]
[323727587,1714206645090,-500.0,0.00011271,2]
[323727588,1714206645100,-500.0,0.00011271,2]
[323727589,1714206645110,-894.78,0.00011271,2]
[323727590,1714206645121,-500.0,0.00011271,2]
[323727591,1714206645132,-500.0,0.00011271,2]
[323727592,1714206645142,-500.0,0.00011271,2]
[323727593,1714206645152,-500.0,0.00011271,2]
[323727594,1714206645164,-500.0,0.00011271,2]
[323727595,1714206645174,-500.0,0.00011271,2]
[323727596,1714206645185,-1758.77,0.00011271,2]
[323727597,1714206645196,-500.0,0.00011271,2]
[323727598,1714206645205,-500.0,0.00011271,2]
[323727599,1714206645214,-500.0,0.00011271,2]
[323727600,1714206645223,-3390.85,0.00011271,2]
[323727601,1714206645232,-500.0,0.00011271,2]
[323727602,1714206645241,-500.0,0.00011271,2]
[323727603,1714206645252,-500.0,0.00011271,2]
[323727604,1714206645263,-500.0,0.00011271,2]
[323727605,1714206645274,-500.0,0.00011271,2]
[323727606,1714206645284,-500.0,0.00011271,2]
[323727607,1714206645294,-511.31590185,0.00011271,2]
[323727608,1714206645303,-500.0,0.00011271,2]
[323727609,1714206645313,-500.0,0.00011271,2]
[323727610,1714206645325,-774.38,0.00011271,2]
[323727611,1714206645338,-500.0,0.00011271,2]
[323727612,1714206645349,-500.0,0.00011272,2]
[323727613,1714206645362,-500.0,0.00011272,2]
[323727614,1714206645373,-374.5,0.00011272,2]
[323727615,1714206645383,-500.0,0.00011272,2]
[323727616,1714206645392,-524.01055697,0.00011272,2]
[323727617,1714206645403,-500.0,0.00011272,2]
[323727618,1714206645414,-500.0,0.00011272,2]
[323727619,1714206645425,-245.81579714,0.00011272,2]
[323727620,1714206645436,-500.0,0.00011272,2]
[323727621,1714206645448,-516.9888831,0.00011272,2]
[323727622,1714206645457,-500.0,0.00011272,2]
[323727623,1714206645467,-466.12,0.00011272,2]
[323727624,1714206645478,-500.0,0.00011272,2]
[323727625,1714206645489,-504.55665628,0.00011272,2]
[323727626,1714206645502,-500.0,0.00011272,2]
[323727627,1714206645514,-500.0,0.00011272,2]
[323727628,1714206645524,-500.0,0.00011272,2]
[323727629,1714206645534,-636.39417344,0.00011272,2]
[323727630,1714206645543,-508.34458441,0.00011272,2]
[323727631,1714206645555,-187.20494319,0.00011277,2]
[323727632,1714206645564,-187.20494319,0.0001128,2]
[323727633,1714206645576,-209.3939524,0.0001128,2]
[323727634,1714206645586,-453.49591964,0.0001128,2]
[323727635,1714206645595,-635.54,0.00011369,2]
[323727636,1714206645605,-361.64617789,0.00011369,2]
[323727637,1714206645614,-500.0,0.00011369,2]
[323727638,1714206645623,-348.28155629,0.00011369,2]
[323727639,1714206645632,-568.30434612,0.00011369,2]
[323727640,1714206645641,-500.0,0.00011369,2]
[323727641,1714206645650,-500.0,0.00011369,2]
[323727642,1714206645659,-500.0,0.00011369,2]
[323727643,1714206645668,-500.0,0.00011369,2]
[323727644,1714206645677,-500.0,0.00011369,2]
[323727645,1714206645686,-821.38,0.00011369,2]
[323727646,1714206645695,-172.03,0.00011369,2]
[323727647,1714206645703,-500.0,0.00011369,2]
[323727648,1714206645713,-500.0,0.00011369,2]
[323727649,1714206645722,-500.0,0.00011369,2]
[323727650,1714206645730,-208.59504903,0.00011369,2]
[323727651,1714206645740,-500.0,0.00011369,2]
[323727652,1714206645749,-500.0,0.00011369,2]
[323727653,1714206645758,-500.0,0.00011369,2]
[323727654,1714206645767,-500.0,0.00011369,2]
[323727655,1714206645776,-186.56,0.00011369,2]
[323727656,1714206645785,-599.84,0.00011369,2]
[323727657,1714206645794,-406.31,0.00011369,2]
[323727658,1714206645803,-649.59,0.00011369,2]
[323727659,1714206645811,-544.35,0.00011369,2]
[323727660,1714206645820,-500.0,0.00011369,2]
[323727661,1714206645830,-295.31,0.00011369,2]
[323727662,1714206645838,-506.07076546,0.00011369,2]
[323727663,1714206645847,-500.0,0.00011369,2]
[323727664,1714206645856,-303.33,0.00011369,2]
[323727665,1714206645866,-259.38,0.00011369,2]
[323727666,1714206645875,-158.31,0.00011369,2]
[323727667,1714206645884,-500.0,0.00011369,2]
[323727668,1714206645893,-177.63975844,0.00011369,2]
[323727669,1714206645902,-500.0,0.00011369,2]
[323727670,1714206645911,-522.83718109,0.00011369,2]
[323727671,1714206645919,-393.97391747,0.00011369,2]
[323727672,1714206645929,-500.0,0.00011369,2]
[323727673,1714206645938,-500.0,0.00011369,2]
[323727674,1714206645946,-500.0,0.00011369,2]
[323727675,1714206645955,-500.0,0.00011369,2]
[323727676,1714206645964,-470.62074701,0.00011369,2]
[323727677,1714206645974,-500.0,0.00011369,2]
[323727678,1714206645983,-502.66056429,0.00011369,2]
[323727679,1714206645994,-500.0,0.00011369,2]
[323727680,1714206646004,-500.0,0.00011369,2]
[323727681,1714206646013,-413.57,0.00011369,2]
[323727682,1714206646024,-500.0,0.00011369,2]
[323727683,1714206646033,-500.0,0.00011369,2]
[323727684,1714206646042,-500.0,0.00011369,2]
[323727685,1714206646051,-500.0,0.00011369,2]
[323727686,1714206646061,-500.0,0.00011369,2]
[323727687,1714206646070,-500.0,0.00011369,2]
[323727688,1714206646080,-577.28,0.00011369,2]
[323727689,1714206646090,-500.0,0.00011369,2]
[323727690,1714206646101,-504.40552321,0.00011369,2]
[323727691,1714206646110,-313.63868604,0.00011369,2]
[323727692,1714206646120,-537.89104314,0.00011369,2]
[323727693,1714206646131,-510.46515923,0.00011369,2]
[323727694,1714206646142,-460.49,0.00011369,2]
[323727695,1714206646152,-363.55,0.00011369,2]
[323727696,1714206646162,-500.0,0.00011369,2]
[323727697,1714206646171,-500.0,0.00011369,2]
[323727698,1714206646181,-623.69,0.00011369,2]
[323727699,1714206646191,-500.0,0.00011369,2]
[323727700,1714206646200,-484.4,0.00011369,2]
[323727701,1714206646210,-598.2172637,0.00011369,2]
[323727704,1714206646405,-614.6,0.00011369,2]
[323727705,1714206646415,-500.0,0.00011369,2]
[323727706,1714206646425,-500.0,0.00011369,2]
[323727707,1714206646436,-518.24730477,0.00011369,2]
[323727708,1714206646447,-500.0,0.00011369,2]
[323727709,1714206646458,-500.0,0.00011369,2]
[323727710,1714206646468,-281.34,0.00011369,2]
[323727711,1714206646478,-604.43,0.00011369,2]
[323727712,1714206646488,-500.0,0.00011369,2]
[323727713,1714206646502,-234.94260701,0.00011369,2]
[323727714,1714206646512,-500.0,0.00011369,2]
[323727715,1714206646522,-500.0,0.00011369,2]
[323727716,1714206646532,-545.49,0.00011369,2]
[323727717,1714206646542,-500.0,0.00011369,2]
[323727718,1714206646552,-500.0,0.00011369,2]
[323727719,1714206646562,-568.83,0.00011369,2]
[323727720,1714206646572,-172.03,0.00011369,2]
[323727721,1714206646583,-500.0,0.00011369,2]
[323727722,1714206646594,-500.0,0.00011369,2]
[323727723,1714206646604,-500.0,0.00011369,2]
[323727724,1714206646613,-500.0,0.00011369,2]
[323727725,1714206646625,-718.1,0.00011369,2]
[323727726,1714206646635,-209.79855522,0.00011369,2]
[323727727,1714206646648,-500.0,0.00011369,2]
[323727728,1714206646661,-500.0,0.00011369,2]
[323727729,1714206646672,-500.0,0.00011369,2]
[323727730,1714206646682,-500.0,0.00011369,2]
[323727731,1714206646692,-334.41,0.00011369,2]
[323727732,1714206646704,-379.58005819,0.00011369,2]
[323727733,1714206646716,-419.87999595,0.00011369,2]
[323727734,1714206646727,-627.86,0.00011369,2]
[323727735,1714206646740,-500.0,0.00011369,2]
[323727736,1714206646752,-500.0,0.00011369,2]
[323727737,1714206646762,-500.0,0.00011369,2]
[323727738,1714206646774,-500.0,0.00011369,2]
[323727739,1714206646785,-905.82,0.00011369,2]
[323727740,1714206646794,-594.00656389,0.00011369,2]
[323727741,1714206646803,-500.0,0.00011369,2]
[323727742,1714206646812,-500.0,0.00011369,2]
[323727743,1714206646821,-500.0,0.00011369,2]
[323727744,1714206646831,-500.0,0.00011369,2]
[323727745,1714206646843,-501.18822421,0.00011369,2]
[323727746,1714206646854,-509.08,0.00011369,2]
[323727747,1714206646867,-500.0,0.00011369,2]
[323727748,1714206646879,-325.565,0.00011369,2]
[323727749,1714206646892,-500.0,0.00011369,2]
[323727750,1714206646903,-500.0,0.00011369,2]
[323727751,1714206646914,-530.13,0.00011369,2]
[323727752,1714206646925,-500.0,0.00011369,2]
[323727753,1714206646935,-500.0,0.00011369,2]
[323727754,1714206646946,-500.0,0.00011369,2]
[323727755,1714206646957,-500.0,0.00011369,2]
[323727756,1714206646968,-500.0,0.00011369,2]
[323727757,1714206646980,-463.56962781,0.00011369,2]
[323727758,1714206646991,-500.0,0.00011369,2]
[323727759,1714206647003,-593.39,0.00011369,2]
[323727760,1714206647015,-500.0,0.00011369,2]
[323727761,1714206647026,-506.54140424,0.00011369,2]
[323727762,1714206647036,-500.0,0.00011369,2]
[323727763,1714206647046,-500.0,0.00011369,2]
[323727764,1714206647057,-500.0,0.00011369,2]
[323727765,1714206647068,-852.22,0.00011369,2]
[323727766,1714206647078,-500.0,0.00011369,2]
[323727767,1714206647090,-500.0,0.00011369,2]
[323727768,1714206647100,-500.0,0.00011369,2]
[323727769,1714206647110,-4177.95,0.00011369,2]
[323727770,1714206647119,-500.0,0.00011369,2]
[323727771,1714206647130,-500.0,0.00011369,2]
[323727772,1714206647141,-500.0,0.00011369,2]
[323727773,1714206647151,-500.0,0.00011369,2]
[323727774,1714206647162,-500.0,0.00011369,2]
[323727775,1714206647171,-500.0,0.00011369,2]
[323727776,1714206647182,-501.59199977,0.00011369,2]
[323727777,1714206647193,-504.9880671,0.00011369,2]
[323727778,1714206647203,-500.0,0.00011369,2]
[323727779,1714206647212,-500.0,0.00011369,2]
[323727780,1714206647221,-500.87895673,0.00011369,2]
[323727781,1714206647231,-500.0,0.00011369,2]
[323727782,1714206647240,-487.97,0.00011369,2]
[323727783,1714206647249,-500.0,0.00011369,2]
[323727784,1714206647258,-500.0,0.00011369,2]
[323727785,1714206647269,-500.0,0.00011369,2]
[323727786,1714206647278,-500.0,0.00011369,2]
[323727787,1714206647287,-499.99,0.00011369,2]
[323727788,1714206647296,-148767.0,0.0001137,2]
[323727789,1714206647305,-3018.93131374,0.00011375,2]
[323727790,1714206647315,-40269.07521475,0.00011377,2]
[323727791,1714206647326,-155.88491021,0.00011377,2]
[323727792,1714206647335,-156.38181641,0.00011377,2]
[323727793,1714206647345,-158.86085169,0.00011377,2]
[323727794,1714206647355,-1804.60968477,0.00011377,2]
[323727795,1714206647364,-312.91635445,0.00011377,2]
[323727796,1714206647373,-642.58844233,0.00011377,2]
[323727797,1714206647382,-320.02810305,0.00011377,2]
[323727798,1714206647390,-211.38445936,0.00011377,2]
[323727799,1714206647400,-155.17235126,0.00011377,2]
[323727800,1714206647409,-155.08655011,0.00011377,2]
[323727801,1714206647418,-155.10206292,0.00011377,2]
[323727802,1714206647427,-239.42070245,0.00011377,2]
[323727803,1714206647437,-264.66645873,0.00011377,2]
[323727804,1714206647447,-471.23635946,0.00011378,2]
[323727805,1714206647457,-433.8196143,0.00011379,2]
[323727806,1714206647466,-237.2331832,0.00011379,2]
[323727807,1714206647476,-61735.12948241,0.00011379,2]
[323727808,1714206647503,-18873.63260655,0.00011379,2]
[323727809,1714206647521,-289.34,0.00011379,2]
[323727810,1714206648294,-176.95421444,0.00011377,2]
[323727811,1714206648303,-1337.09945522,0.00011377,2]
[323727812,1714206648335,-185.88111992,0.00011377,2]
[323727813,1714206648344,-219002.33766439,0.00011379,2]
[323727814,1714206648367,-635.79838548,0.00011379,2]
[323727816,1714207205249,297.01,8.219e-05,2]
[323727817,1714207481054,500.0,8.5e-05,2]
[323727818,1714207528550,236.97933063,8.5e-05,2]
[323727819,1714207668849,282.15,8.219e-05,2]
[323727831,1714207832058,-706.80422125,9.666e-05,2]
[323727832,1714207832070,-1977.45288244,9.667e-05,2]
[323727833,1714207832086,-507.97172053,9.667e-05,2]
[323727834,1714207832100,-596.6438349,9.667e-05,2]
[323727835,1714207832111,-417.3,9.671e-05,2]
[323727836,1714207832123,-178.65,9.671e-05,2]
[323727837,1714207832135,-840.9761651,9.698e-05,2]
[323727838,1714207832155,-542.31677201,9.698e-05,2]
[323727839,1714207832170,-306.88917699,9.698e-05,2]
[323727840,1714207832203,-2002.6978859,9.698e-05,2]
[323727841,1714207832216,-353.13,9.722e-05,2]
[323727842,1714207832228,-53540.49,9.735e-05,2]
[323727843,1714207832239,-156.77121027,0.00010355,2]
[323727844,1714207832249,-639.91,0.00010455,2]
[323727845,1714207832260,-2485.3,0.00010455,2]
[323727846,1714207832269,-639.91,0.00010458,2]
[323727847,1714207832279,-1261.82,0.00010458,2]
[323727848,1714207832290,-282.15,0.0001046,2]
[323727849,1714207832301,-639.91,0.0001046,2]
[323727850,1714207832314,-639.91,0.00010463,2]
[323727851,1714207832325,-639.91,0.00010466,2]
[323727852,1714207832337,-2535.21,0.00010466,2]
[323727853,1714207832348,-639.91,0.00010469,2]
[323727854,1714207832360,-163.76,0.00010469,2]
[323727855,1714207832370,-639.91,0.00010471,2]
[323727856,1714207832380,-639.91,0.00010474,2]
[323727857,1714207832390,-639.91,0.00010477,2]
[323727858,1714207832400,-639.91,0.0001048,2]
[323727859,1714207832413,-639.91,0.00010482,2]
[323727860,1714207832428,-639.91,0.00010485,2]
[323727861,1714207832439,-639.91,0.00010488,2]
[323727863,1714207832450,-639.91,0.0001049,2]
[323727865,1714207832461,-639.91,0.00010493,2]
[323727867,1714207832472,-639.91,0.00010496,2]
[323727870,1714207832483,-639.91,0.00010499,2]
[323727872,1714207832495,-639.91,0.00010501,2]
[323727874,1714207832507,-639.91,0.00010504,2]
[323727876,1714207832517,-639.91,0.00010507,2]
[323727878,1714207832528,-798.75,0.00010538,2]
[323727880,1714207832539,-156.77121027,0.00010663,2]
[323727882,1714207832550,-417.3,0.0001088,2]
[323727885,1714207832561,-155.0,0.000109,2]
[323727887,1714207832572,-156.77121027,0.00010971,2]